[Event "Titled Tuesday Blitz May 03 Late 2022"]
[White "Stoleriu, George"]
[Black "Keymer, Vincent"]
[WhiteFideId "1227505"]
[BlackFideId "12940690"]
[WhiteElo "2178"]
[BlackElo "2557"]
[Result "0-1"]
[Round "04"]
[TimeControl "180+1"]
[Date "2022.05.03"]
[WhiteClock "0:00:20"]
[BlackClock "0:01:37"]

1. e4 {[%clk 0:02:56]}  c6 {[%clk 0:02:59]} 2. Nf3 {[%clk 0:02:53]}  d5 {[%clk 0:03:00]} 3. Nc3 {[%clk 0:02:50]}  dxe4 {[%clk 0:03:01]} 4. Nxe4 {[%clk 0:02:51]}  Nf6 {[%clk 0:03:01]} 5. Bd3 {[%clk 0:02:52]}  Nbd7 {[%clk 0:03:00]} 6. c3 {[%clk 0:02:41]}  Nxe4 {[%clk 0:03:00]} 7. Bxe4 {[%clk 0:02:42]}  Nf6 {[%clk 0:03:00]} 8. Bc2 {[%clk 0:02:43]}  Bg4 {[%clk 0:03:00]} 9. d4 {[%clk 0:02:41]}  e6 {[%clk 0:02:51]} 10. Bf4 {[%clk 0:02:27]}  Qd5 {[%clk 0:02:44]} 11. h3 {[%clk 0:02:21]}  Bxf3 {[%clk 0:02:42]} 12. Qxf3 {[%clk 0:02:22]}  Qxf3 {[%clk 0:02:42]} 13. gxf3 {[%clk 0:02:23]}  O-O-O {[%clk 0:02:41]} 14. O-O-O {[%clk 0:02:18]}  Nh5 {[%clk 0:02:37]} 15. Be5 {[%clk 0:02:15]}  Bd6 {[%clk 0:02:37]} 16. Bxd6 {[%clk 0:01:55]}  Rxd6 {[%clk 0:02:38]} 17. Rde1 {[%clk 0:01:51]}  g6 {[%clk 0:02:33]} 18. Re4 {[%clk 0:01:48]}  Rhd8 {[%clk 0:02:29]} 19. Rhe1 {[%clk 0:01:46]}  Rd5 {[%clk 0:02:28]} 20. Re5 {[%clk 0:01:43]}  Rxe5 {[%clk 0:02:21]} 21. Rxe5 {[%clk 0:01:42]}  Rd5 {[%clk 0:02:20]} 22. Rxd5 {[%clk 0:00:43]}  cxd5 {[%clk 0:02:19]} 23. Bd3 {[%clk 0:00:44]}  Nf4 {[%clk 0:02:17]} 24. Bf1 {[%clk 0:00:44]}  g5 {[%clk 0:02:17]} 25. Kd2 {[%clk 0:00:44]}  f6 {[%clk 0:02:12]} 26. Ke3 {[%clk 0:00:44]}  Kc7 {[%clk 0:02:12]} 27. h4 {[%clk 0:00:44]}  h5 {[%clk 0:02:09]} 28. c4 {[%clk 0:00:40]}  dxc4 {[%clk 0:02:03]} 29. Bxc4 {[%clk 0:00:38]}  Kd6 {[%clk 0:02:01]} 30. Bf1 {[%clk 0:00:35]}  b6 {[%clk 0:01:59]} 31. b3 {[%clk 0:00:33]}  Nd5+ {[%clk 0:01:59]} 32. Kd2 {[%clk 0:00:32]}  gxh4 {[%clk 0:01:59]} 33. f4 {[%clk 0:00:30]}  Nxf4 {[%clk 0:01:57]} 34. Ke3 {[%clk 0:00:30]}  Nd5+ {[%clk 0:01:57]} 35. Kf3 {[%clk 0:00:29]}  Nb4 {[%clk 0:01:52]} 36. a4 {[%clk 0:00:27]}  f5 {[%clk 0:01:48]} 37. Kf4 {[%clk 0:00:26]}  Nc2 {[%clk 0:01:47]} 38. Kg5 {[%clk 0:00:26]}  Nxd4 {[%clk 0:01:47]} 39. b4 {[%clk 0:00:25]}  Nf3+ {[%clk 0:01:41]} 40. Kxh5 {[%clk 0:00:25]}  Ke5 {[%clk 0:01:42]} 41. Bg2 {[%clk 0:00:20]}  Kf4 {[%clk 0:01:40]} 42. Kg6 {[%clk 0:00:21]}  e5 {[%clk 0:01:40]} 43. Kh5 {[%clk 0:00:20]}  e4 {[%clk 0:01:40]} 44. Bh1 {[%clk 0:00:21]}  a5 {[%clk 0:01:37]} 45. b5 {[%clk 0:00:20]}  Ne5 {[%clk 0:01:36]} 46. Kxh4 {[%clk 0:00:20]}  Nd3 {[%clk 0:01:37]} 0-1


[Site "https://www.chess.com"]

[Event "Titled Tuesday Blitz May 03 Late 2022"]
[White "Storey, Charles H"]
[Black "Voege, Tobias"]
[WhiteFideId "406686"]
[BlackFideId "1270513"]
[WhiteElo "2263"]
[BlackElo "2297"]
[Result "0-1"]
[Round "04"]
[TimeControl "180+1"]
[Date "2022.05.03"]
[WhiteClock "0:00:16"]
[BlackClock "0:01:45"]

1. e4 {[%clk 0:03:00]}  c5 {[%clk 0:02:58]} 2. Nf3 {[%clk 0:03:00]}  Nc6 {[%clk 0:02:58]} 3. d4 {[%clk 0:02:59]}  cxd4 {[%clk 0:02:59]} 4. Nxd4 {[%clk 0:03:00]}  g6 {[%clk 0:02:59]} 5. c4 {[%clk 0:02:59]}  Bg7 {[%clk 0:02:59]} 6. Be3 {[%clk 0:03:00]}  Nf6 {[%clk 0:02:59]} 7. Nc3 {[%clk 0:03:00]}  O-O {[%clk 0:02:59]} 8. Be2 {[%clk 0:02:59]}  d6 {[%clk 0:03:00]} 9. f3 {[%clk 0:02:59]}  Nxd4 {[%clk 0:02:59]} 10. Bxd4 {[%clk 0:02:59]}  a5 {[%clk 0:03:00]} 11. a4 {[%clk 0:02:42]}  Bd7 {[%clk 0:02:59]} 12. O-O {[%clk 0:02:41]}  Bc6 {[%clk 0:02:59]} 13. Qd2 {[%clk 0:02:37]}  Nd7 {[%clk 0:02:59]} 14. Bxg7 {[%clk 0:02:36]}  Kxg7 {[%clk 0:03:00]} 15. Kh1 {[%clk 0:02:30]}  Qb6 {[%clk 0:02:59]} 16. f4 {[%clk 0:02:22]}  Kg8 {[%clk 0:02:58]} 17. Nd5 {[%clk 0:02:05]}  Bxd5 {[%clk 0:02:57]} 18. exd5 {[%clk 0:02:05]}  Nc5 {[%clk 0:02:56]} 19. Ra3 {[%clk 0:02:00]}  Qb4 {[%clk 0:02:53]} 20. Qd4 {[%clk 0:01:53]}  Nxa4 {[%clk 0:02:45]} 21. Re3 {[%clk 0:01:24]}  Rae8 {[%clk 0:02:28]} 22. b3 {[%clk 0:01:23]}  Nc5 {[%clk 0:02:24]} 23. Rff3 {[%clk 0:01:13]}  a4 {[%clk 0:02:16]} 24. bxa4 {[%clk 0:01:13]}  Qxa4 {[%clk 0:02:16]} 25. Bd1 {[%clk 0:01:05]}  Qb4 {[%clk 0:02:10]} 26. f5 {[%clk 0:01:00]}  b5 {[%clk 0:02:00]} 27. fxg6 {[%clk 0:00:57]}  fxg6 {[%clk 0:01:55]} 28. h3 {[%clk 0:00:32]}  Qxc4 {[%clk 0:01:50]} 29. Rxf8+ {[%clk 0:00:17]}  Rxf8 {[%clk 0:01:48]} 30. Qd2 {[%clk 0:00:16]}  Rf1+ {[%clk 0:01:45]} 31. Kh2 {[%clk 0:00:16]}  Qf4+ {[%clk 0:01:45]} 0-1


[Site "https://www.chess.com"]

[Event "Titled Tuesday Blitz May 03 Late 2022"]
[White "Suder, Jakub"]
[Black "Drygalov, Sergey"]
[WhiteFideId "1195310"]
[BlackFideId "24171743"]
[WhiteElo "2058"]
[BlackElo "2514"]
[Result "0-1"]
[Round "04"]
[TimeControl "180+1"]
[Date "2022.05.03"]
[WhiteClock "0:01:16"]
[BlackClock "0:01:53"]

1. d4 {[%clk 0:03:00]}  Nf6 {[%clk 0:02:58]} 2. c4 {[%clk 0:03:01]}  e6 {[%clk 0:02:59]} 3. Nc3 {[%clk 0:03:01]}  Bb4 {[%clk 0:02:59]} 4. f3 {[%clk 0:03:02]}  c5 {[%clk 0:02:59]} 5. d5 {[%clk 0:03:02]}  O-O {[%clk 0:02:58]} 6. e4 {[%clk 0:03:02]}  b5 {[%clk 0:02:58]} 7. e5 {[%clk 0:03:03]}  exd5 {[%clk 0:02:58]} 8. exf6 {[%clk 0:03:02]}  Qxf6 {[%clk 0:02:54]} 9. cxd5 {[%clk 0:02:46]}  Re8+ {[%clk 0:02:48]} 10. Ne2 {[%clk 0:02:43]}  d6 {[%clk 0:02:22]} 11. Kf2 {[%clk 0:02:38]}  Nd7 {[%clk 0:02:22]} 12. Ng3 {[%clk 0:02:27]}  c4 {[%clk 0:02:15]} 13. Nge4 {[%clk 0:02:24]}  Qg6 {[%clk 0:02:15]} 14. Be3 {[%clk 0:02:16]}  f5 {[%clk 0:02:14]} 15. Ng3 {[%clk 0:02:00]}  f4 {[%clk 0:02:14]} 16. Bd4 {[%clk 0:01:53]}  fxg3+ {[%clk 0:02:14]} 17. hxg3 {[%clk 0:01:54]}  a6 {[%clk 0:02:14]} 18. Rh4 {[%clk 0:01:48]}  Bc5 {[%clk 0:02:12]} 19. Rg4 {[%clk 0:01:44]}  Qh6 {[%clk 0:02:11]} 20. Ne4 {[%clk 0:01:39]}  Ne5 {[%clk 0:01:53]} 21. Rh4 {[%clk 0:01:33]}  Nd3+ {[%clk 0:01:53]} 22. Bxd3 {[%clk 0:01:16]}  Bxd4+ {[%clk 0:01:53]} 23. Kf1 {[%clk 0:01:16]}  Qe3 {[%clk 0:01:53]} 0-1


[Site "https://www.chess.com"]

[Event "Titled Tuesday Blitz May 03 Late 2022"]
[White "Tang, Andrew"]
[Black "Janaszak, Dawid"]
[WhiteFideId "2059630"]
[BlackFideId "1119206"]
[WhiteElo "2584"]
[BlackElo "2199"]
[Result "1-0"]
[Round "04"]
[TimeControl "180+1"]
[Date "2022.05.03"]
[WhiteClock "0:00:05"]
[BlackClock "0:00:04"]

1. d4 {[%clk 0:02:56]}  Nf6 {[%clk 0:02:59]} 2. c4 {[%clk 0:02:56]}  g6 {[%clk 0:02:59]} 3. f3 {[%clk 0:02:53]}  c5 {[%clk 0:02:54]} 4. d5 {[%clk 0:02:53]}  b5 {[%clk 0:02:51]} 5. cxb5 {[%clk 0:02:45]}  a6 {[%clk 0:02:50]} 6. e4 {[%clk 0:02:42]}  d6 {[%clk 0:02:41]} 7. Nc3 {[%clk 0:02:41]}  Bg7 {[%clk 0:02:40]} 8. Be3 {[%clk 0:02:41]}  O-O {[%clk 0:02:38]} 9. a4 {[%clk 0:02:42]}  e6 {[%clk 0:02:34]} 10. Bc4 {[%clk 0:02:39]}  exd5 {[%clk 0:02:32]} 11. Bxd5 {[%clk 0:02:25]}  Nxd5 {[%clk 0:02:25]} 12. Qxd5 {[%clk 0:02:26]}  Ra7 {[%clk 0:02:20]} 13. Nge2 {[%clk 0:02:25]}  Be6 {[%clk 0:02:11]} 14. Qd2 {[%clk 0:02:23]}  Bc4 {[%clk 0:01:54]} 15. O-O {[%clk 0:02:17]}  axb5 {[%clk 0:01:49]} 16. Nxb5 {[%clk 0:02:14]}  Ra6 {[%clk 0:01:15]} 17. Rfc1 {[%clk 0:02:07]}  Bb3 {[%clk 0:01:07]} 18. Nec3 {[%clk 0:02:01]}  Nd7 {[%clk 0:00:58]} 19. Ra3 {[%clk 0:01:39]}  Be6 {[%clk 0:00:55]} 20. Bh6 {[%clk 0:01:29]}  Ne5 {[%clk 0:00:43]} 21. Bxg7 {[%clk 0:01:29]}  Kxg7 {[%clk 0:00:44]} 22. Raa1 {[%clk 0:01:24]}  c4 {[%clk 0:00:34]} 23. Qd4 {[%clk 0:01:23]}  Kg8 {[%clk 0:00:29]} 24. Nd5 {[%clk 0:01:20]}  Bxd5 {[%clk 0:00:27]} 25. Qxd5 {[%clk 0:01:10]}  Nd3 {[%clk 0:00:22]} 26. Rxc4 {[%clk 0:01:09]}  Nxb2 {[%clk 0:00:22]} 27. Rb4 {[%clk 0:01:09]}  Qb6+ {[%clk 0:00:20]} 28. Kh1 {[%clk 0:00:41]}  Qf2 {[%clk 0:00:20]} 29. Qb3 {[%clk 0:00:40]}  Rc8 {[%clk 0:00:17]} 30. Qxb2 {[%clk 0:00:32]}  Rc2 {[%clk 0:00:16]} 31. Qxc2 {[%clk 0:00:24]}  Qxc2 {[%clk 0:00:17]} 32. h3 {[%clk 0:00:21]}  h5 {[%clk 0:00:17]} 33. Nd4 {[%clk 0:00:17]}  Qc3 {[%clk 0:00:16]} 34. Rab1 {[%clk 0:00:18]}  h4 {[%clk 0:00:15]} 35. f4 {[%clk 0:00:16]}  Qg3 {[%clk 0:00:13]} 36. f5 {[%clk 0:00:15]}  g5 {[%clk 0:00:12]} 37. f6 {[%clk 0:00:14]}  Ra8 {[%clk 0:00:11]} 38. Nf5 {[%clk 0:00:13]}  Qf4 {[%clk 0:00:10]} 39. Rd1 {[%clk 0:00:12]}  g4 {[%clk 0:00:10]} 40. hxg4 {[%clk 0:00:13]}  h3 {[%clk 0:00:11]} 41. Rb3 {[%clk 0:00:10]}  hxg2+ {[%clk 0:00:10]} 42. Kxg2 {[%clk 0:00:11]}  Qxe4+ {[%clk 0:00:09]} 43. Kh3 {[%clk 0:00:11]}  Qc2 {[%clk 0:00:08]} 44. Rbd3 {[%clk 0:00:11]}  Rxa4 {[%clk 0:00:07]} 45. Rxd6 {[%clk 0:00:08]}  Ra3+ {[%clk 0:00:07]} 46. Ng3 {[%clk 0:00:07]}  Qc3 {[%clk 0:00:06]} 47. Rg1 {[%clk 0:00:04]}  Qc5 {[%clk 0:00:05]} 48. Rdd1 {[%clk 0:00:04]}  Qe3 {[%clk 0:00:05]} 49. Kh2 {[%clk 0:00:02]}  Qf2+ {[%clk 0:00:05]} 50. Rg2 {[%clk 0:00:02]}  Qf4 {[%clk 0:00:06]} 51. Rd5 {[%clk 0:00:01]}  Rf3 {[%clk 0:00:04]} 52. Rf5 {[%clk 0:00:01]}  Qe3 {[%clk 0:00:04]} 53. Rh5 {[%clk 0:00:01]}  Rf2 {[%clk 0:00:03]} 54. Rf5 {[%clk 0:00:01]}  Rxg2+ {[%clk 0:00:02]} 55. Kxg2 {[%clk 0:00:02]}  Qd2+ {[%clk 0:00:02]} 56. Kh3 {[%clk 0:00:03]}  Qc1 {[%clk 0:00:02]} 57. Rf3 {[%clk 0:00:03]}  Qd1 {[%clk 0:00:02]} 58. Rf2 {[%clk 0:00:02]}  Qc1 {[%clk 0:00:03]} 59. Kg2 {[%clk 0:00:03]}  Qh6 {[%clk 0:00:03]} 60. Nh5 {[%clk 0:00:02]}  Qc1 {[%clk 0:00:03]} 61. Kg3 {[%clk 0:00:02]}  Qc6 {[%clk 0:00:04]} 62. Rf3 {[%clk 0:00:02]}  Qc7+ {[%clk 0:00:04]} 63. Nf4 {[%clk 0:00:03]}  Qc6 {[%clk 0:00:05]} 64. g5 {[%clk 0:00:03]}  Qc5 {[%clk 0:00:05]} 65. Kg4 {[%clk 0:00:04]}  Qc8+ {[%clk 0:00:05]} 66. Kh4 {[%clk 0:00:04]}  Qc6 {[%clk 0:00:05]} 67. Rd3 {[%clk 0:00:04]}  Qe4 {[%clk 0:00:05]} 68. Kg4 {[%clk 0:00:04]}  Qe1 {[%clk 0:00:04]} 69. Kf5 {[%clk 0:00:03]}  Qb1 {[%clk 0:00:04]} 70. g6 {[%clk 0:00:04]}  fxg6+ {[%clk 0:00:03]} 71. Kxg6 {[%clk 0:00:05]}  Qc2 {[%clk 0:00:03]} 72. f7+ {[%clk 0:00:04]}  Kf8 {[%clk 0:00:04]} 73. Ne6+ {[%clk 0:00:04]}  Ke7 {[%clk 0:00:04]} 74. f8=Q+ {[%clk 0:00:05]} 1-0


[Site "https://www.chess.com"]

[Event "Titled Tuesday Blitz May 03 Late 2022"]
[White "Trost, Edvin"]
[Black "Paravyan, David"]
[WhiteFideId "1729519"]
[BlackFideId "4194985"]
[WhiteElo "2160"]
[BlackElo "2569"]
[Result "0-1"]
[Round "04"]
[TimeControl "180+1"]
[Date "2022.05.03"]
[WhiteClock "0:00:04"]
[BlackClock "0:00:06"]

1. d4 {[%clk 0:03:00]}  Nf6 {[%clk 0:02:59]} 2. c4 {[%clk 0:03:01]}  g6 {[%clk 0:03:00]} 3. Nc3 {[%clk 0:02:56]}  d5 {[%clk 0:02:59]} 4. Bf4 {[%clk 0:02:48]}  Bg7 {[%clk 0:02:58]} 5. e3 {[%clk 0:02:48]}  c5 {[%clk 0:02:57]} 6. dxc5 {[%clk 0:02:47]}  Qa5 {[%clk 0:02:52]} 7. Rc1 {[%clk 0:02:44]}  dxc4 {[%clk 0:02:43]} 8. Bxc4 {[%clk 0:02:41]}  O-O {[%clk 0:02:44]} 9. Ne2 {[%clk 0:02:39]}  Nbd7 {[%clk 0:02:37]} 10. a3 {[%clk 0:02:35]}  Qxc5 {[%clk 0:02:36]} 11. Nb5 {[%clk 0:02:24]}  Qh5 {[%clk 0:02:16]} 12. Nc7 {[%clk 0:02:07]}  b5 {[%clk 0:00:37]} 13. Ba2 {[%clk 0:01:38]}  Bb7 {[%clk 0:00:35]} 14. Nxa8 {[%clk 0:01:33]}  Bxg2 {[%clk 0:00:35]} 15. Rg1 {[%clk 0:01:23]}  Bxa8 {[%clk 0:00:35]} 16. Ng3 {[%clk 0:01:14]}  Qxh2 {[%clk 0:00:32]} 17. Ne2 {[%clk 0:01:14]}  Qh5 {[%clk 0:00:29]} 18. Rg5 {[%clk 0:01:13]}  Qh1+ {[%clk 0:00:29]} 19. Rg1 {[%clk 0:01:13]}  Qh5 {[%clk 0:00:29]} 20. Ng3 {[%clk 0:00:34]}  Qh2 {[%clk 0:00:28]} 21. Ne2 {[%clk 0:00:34]}  Qh3 {[%clk 0:00:27]} 22. Rg3 {[%clk 0:00:31]}  Qh5 {[%clk 0:00:20]} 23. Rg5 {[%clk 0:00:31]}  Qh4 {[%clk 0:00:21]} 24. Rg1 {[%clk 0:00:24]}  Bf3 {[%clk 0:00:11]} 25. Bg3 {[%clk 0:00:21]}  Qh5 {[%clk 0:00:10]} 26. Qd2 {[%clk 0:00:20]}  Ne4 {[%clk 0:00:08]} 27. Qxd7 {[%clk 0:00:20]}  Bxe2 {[%clk 0:00:08]} 28. Rc8 {[%clk 0:00:18]}  Bc4 {[%clk 0:00:05]} 29. Bxc4 {[%clk 0:00:16]}  bxc4 {[%clk 0:00:05]} 30. Rxc4 {[%clk 0:00:13]}  Qa5+ {[%clk 0:00:04]} 31. b4 {[%clk 0:00:12]}  Qxa3 {[%clk 0:00:02]} 32. Rxe4 {[%clk 0:00:11]}  Qb3 {[%clk 0:00:02]} 33. Rxe7 {[%clk 0:00:08]}  Qb1+ {[%clk 0:00:01]} 34. Ke2 {[%clk 0:00:08]}  Qxg1 {[%clk 0:00:01]} 35. Bd6 {[%clk 0:00:08]}  Qb1 {[%clk 0:00:02]} 36. Re8 {[%clk 0:00:07]}  Qc2+ {[%clk 0:00:02]} 37. Kf1 {[%clk 0:00:07]}  Qd1+ {[%clk 0:00:02]} 38. Kg2 {[%clk 0:00:07]}  Qd5+ {[%clk 0:00:03]} 39. e4 {[%clk 0:00:08]}  Qd3 {[%clk 0:00:01]} 40. Qd8 {[%clk 0:00:05]}  Qxd6 {[%clk 0:00:02]} 41. Qxd6 {[%clk 0:00:04]}  Rxe8 {[%clk 0:00:02]} 42. f3 {[%clk 0:00:04]}  Bf8 {[%clk 0:00:02]} 43. Qa6 {[%clk 0:00:04]}  Re6 {[%clk 0:00:03]} 44. Qxa7 {[%clk 0:00:04]}  Bxb4 {[%clk 0:00:03]} 45. Qb8+ {[%clk 0:00:05]}  Bf8 {[%clk 0:00:04]} 46. Qb3 {[%clk 0:00:06]}  h5 {[%clk 0:00:04]} 47. Kh3 {[%clk 0:00:06]}  Bg7 {[%clk 0:00:05]} 48. Qd5 {[%clk 0:00:07]}  Be5 {[%clk 0:00:05]} 49. Qd8+ {[%clk 0:00:07]}  Kg7 {[%clk 0:00:06]} 50. Qd3 {[%clk 0:00:08]}  Rf6 {[%clk 0:00:06]} 51. Kg2 {[%clk 0:00:08]}  Re6 {[%clk 0:00:06]} 52. Qd5 {[%clk 0:00:08]}  Bf6 {[%clk 0:00:07]} 53. Qd3 {[%clk 0:00:08]}  Bg5 {[%clk 0:00:06]} 54. Qd5 {[%clk 0:00:09]}  Bf4 {[%clk 0:00:05]} 55. Qd8 {[%clk 0:00:08]}  Rc6 {[%clk 0:00:04]} 56. Qd4+ {[%clk 0:00:08]}  Kg8 {[%clk 0:00:03]} 57. Qd8+ {[%clk 0:00:08]}  Kg7 {[%clk 0:00:03]} 58. Qd4+ {[%clk 0:00:08]}  Kh7 {[%clk 0:00:02]} 59. e5 {[%clk 0:00:08]}  Bh6 {[%clk 0:00:02]} 60. f4 {[%clk 0:00:08]}  Re6 {[%clk 0:00:02]} 61. Qd7 {[%clk 0:00:08]}  Kg8 {[%clk 0:00:02]} 62. Qc8+ {[%clk 0:00:08]}  Bf8 {[%clk 0:00:03]} 63. Qc4 {[%clk 0:00:08]}  g5 {[%clk 0:00:03]} 64. fxg5 {[%clk 0:00:05]}  Rxe5 {[%clk 0:00:03]} 65. Qf4 {[%clk 0:00:05]}  Re6 {[%clk 0:00:03]} 66. Kh3 {[%clk 0:00:05]}  Rg6 {[%clk 0:00:04]} 67. Qf5 {[%clk 0:00:05]}  Be7 {[%clk 0:00:04]} 68. Qc8+ {[%clk 0:00:06]}  Kg7 {[%clk 0:00:04]} 69. Qc3+ {[%clk 0:00:06]}  Kg8 {[%clk 0:00:05]} 70. Qc8+ {[%clk 0:00:06]}  Kg7 {[%clk 0:00:06]} 71. Qc4 {[%clk 0:00:06]}  Bxg5 {[%clk 0:00:05]} 72. Qe2 {[%clk 0:00:05]}  h4 {[%clk 0:00:05]} 73. Qe5+ {[%clk 0:00:04]}  Bf6 {[%clk 0:00:06]} 74. Qe4 {[%clk 0:00:05]}  Rg3+ {[%clk 0:00:06]} 75. Kh2 {[%clk 0:00:05]}  Rg6 {[%clk 0:00:06]} 76. Qf5 {[%clk 0:00:05]}  Rg5 {[%clk 0:00:06]} 77. Qd3 {[%clk 0:00:04]}  Rg3 {[%clk 0:00:06]} 0-1


[Site "https://www.chess.com"]

[Event "Titled Tuesday Blitz May 03 Late 2022"]
[White "Urbina Perez, Juan Antonio"]
[Black "Keller, Peter"]
[WhiteFideId "2217368"]
[BlackFideId "1272105"]
[WhiteElo "2192"]
[BlackElo "2275"]
[Result "1-0"]
[Round "04"]
[TimeControl "180+1"]
[Date "2022.05.03"]
[WhiteClock "0:00:28"]
[BlackClock "0:00:09"]

1. e4 {[%clk 0:03:00]}  e5 {[%clk 0:02:57]} 2. Nf3 {[%clk 0:03:00]}  Nc6 {[%clk 0:02:57]} 3. Bc4 {[%clk 0:03:00]}  Nf6 {[%clk 0:02:57]} 4. d3 {[%clk 0:03:00]}  Bc5 {[%clk 0:02:51]} 5. c3 {[%clk 0:03:01]}  a6 {[%clk 0:02:45]} 6. O-O {[%clk 0:03:01]}  d6 {[%clk 0:02:44]} 7. Re1 {[%clk 0:03:01]}  Ba7 {[%clk 0:02:44]} 8. a4 {[%clk 0:03:01]}  O-O {[%clk 0:02:43]} 9. h3 {[%clk 0:03:01]}  h6 {[%clk 0:02:43]} 10. Nbd2 {[%clk 0:02:55]}  Re8 {[%clk 0:02:43]} 11. Nf1 {[%clk 0:02:55]}  Ne7 {[%clk 0:02:32]} 12. Be3 {[%clk 0:02:53]}  Ng6 {[%clk 0:02:29]} 13. Bxa7 {[%clk 0:02:52]}  Rxa7 {[%clk 0:02:30]} 14. b4 {[%clk 0:02:52]}  Be6 {[%clk 0:02:25]} 15. Bxe6 {[%clk 0:02:48]}  Rxe6 {[%clk 0:01:58]} 16. Ng3 {[%clk 0:02:49]}  Ra8 {[%clk 0:01:53]} 17. d4 {[%clk 0:02:46]}  exd4 {[%clk 0:01:38]} 18. cxd4 {[%clk 0:02:43]}  Qd7 {[%clk 0:01:33]} 19. Qc2 {[%clk 0:02:42]}  Rc8 {[%clk 0:01:20]} 20. Rac1 {[%clk 0:02:39]}  Ree8 {[%clk 0:01:20]} 21. e5 {[%clk 0:02:28]}  dxe5 {[%clk 0:01:16]} 22. dxe5 {[%clk 0:02:29]}  Nd5 {[%clk 0:01:15]} 23. Red1 {[%clk 0:02:26]}  c6 {[%clk 0:01:13]} 24. Qb3 {[%clk 0:02:22]}  Qe7 {[%clk 0:01:06]} 25. Re1 {[%clk 0:02:13]}  Qxb4 {[%clk 0:01:05]} 26. Qc2 {[%clk 0:02:09]}  b5 {[%clk 0:00:58]} 27. axb5 {[%clk 0:02:08]}  axb5 {[%clk 0:00:58]} 28. Nf5 {[%clk 0:02:08]}  Qa4 {[%clk 0:00:53]} 29. Qxa4 {[%clk 0:02:03]}  bxa4 {[%clk 0:00:54]} 30. Nd6 {[%clk 0:02:03]}  Nb4 {[%clk 0:00:52]} 31. Nxe8 {[%clk 0:02:01]}  Rxe8 {[%clk 0:00:52]} 32. Rc4 {[%clk 0:02:00]}  Nd3 {[%clk 0:00:47]} 33. Re3 {[%clk 0:01:59]}  Ndxe5 {[%clk 0:00:46]} 34. Nxe5 {[%clk 0:01:59]}  Rxe5 {[%clk 0:00:42]} 35. Rxe5 {[%clk 0:01:58]}  Nxe5 {[%clk 0:00:43]} 36. Rxa4 {[%clk 0:01:58]}  g5 {[%clk 0:00:41]} 37. Ra5 {[%clk 0:01:57]}  f6 {[%clk 0:00:41]} 38. g3 {[%clk 0:01:55]}  Kf7 {[%clk 0:00:37]} 39. g4 {[%clk 0:01:40]}  Kg6 {[%clk 0:00:34]} 40. Kg2 {[%clk 0:01:39]}  h5 {[%clk 0:00:34]} 41. f3 {[%clk 0:01:39]}  hxg4 {[%clk 0:00:34]} 42. hxg4 {[%clk 0:01:39]}  Kf7 {[%clk 0:00:33]} 43. Kf2 {[%clk 0:01:36]}  Ke6 {[%clk 0:00:33]} 44. Ra8 {[%clk 0:01:35]}  Nf7 {[%clk 0:00:22]} 45. Ke3 {[%clk 0:01:34]}  Nd6 {[%clk 0:00:21]} 46. Ra6 {[%clk 0:01:31]}  Kd5 {[%clk 0:00:21]} 47. Ra8 {[%clk 0:01:29]}  Ke6 {[%clk 0:00:21]} 48. Kd4 {[%clk 0:01:20]}  f5 {[%clk 0:00:21]} 49. Rg8 {[%clk 0:01:14]}  fxg4 {[%clk 0:00:18]} 50. fxg4 {[%clk 0:01:15]}  Kf6 {[%clk 0:00:18]} 51. Rd8 {[%clk 0:00:54]}  Nf7 {[%clk 0:00:19]} 52. Kc5 {[%clk 0:00:46]}  Ne5 {[%clk 0:00:15]} 53. Rd4 {[%clk 0:00:44]}  Ke6 {[%clk 0:00:14]} 54. Re4 {[%clk 0:00:43]}  Kf6 {[%clk 0:00:15]} 55. Kd6 {[%clk 0:00:41]}  Ng6 {[%clk 0:00:10]} 56. Re6+ {[%clk 0:00:38]}  Kf7 {[%clk 0:00:10]} 57. Re4 {[%clk 0:00:35]}  Kf6 {[%clk 0:00:08]} 58. Kxc6 {[%clk 0:00:34]}  Ne5+ {[%clk 0:00:08]} 59. Kd5 {[%clk 0:00:31]}  Ng6 {[%clk 0:00:09]} 60. Re6+ {[%clk 0:00:30]}  Kf7 {[%clk 0:00:09]} 61. Ra6 {[%clk 0:00:30]}  Kg7 {[%clk 0:00:09]} 62. Ke6 {[%clk 0:00:29]}  Nf4+ {[%clk 0:00:09]} 63. Kf5 {[%clk 0:00:28]} 1-0


[Site "https://www.chess.com"]

[Event "Titled Tuesday Blitz May 03 Late 2022"]
[White "Vlassov, Nikolai"]
[Black "Bortnyk, Olexandr"]
[WhiteFideId "4103360"]
[BlackFideId "14120828"]
[WhiteElo "2407"]
[BlackElo "2723"]
[Result "0-1"]
[Round "04"]
[TimeControl "180+1"]
[Date "2022.05.03"]
[WhiteClock "0:00:11"]
[BlackClock "0:01:18"]

1. e4 {[%clk 0:03:00]}  d6 {[%clk 0:03:00]} 2. f4 {[%clk 0:03:00]}  Nf6 {[%clk 0:03:01]} 3. Nc3 {[%clk 0:03:00]}  Nbd7 {[%clk 0:03:00]} 4. Nf3 {[%clk 0:03:01]}  e5 {[%clk 0:03:00]} 5. Bc4 {[%clk 0:02:58]}  Be7 {[%clk 0:03:00]} 6. d4 {[%clk 0:02:57]}  exd4 {[%clk 0:03:00]} 7. Qxd4 {[%clk 0:02:54]}  O-O {[%clk 0:03:00]} 8. Be3 {[%clk 0:02:50]}  c6 {[%clk 0:02:54]} 9. O-O {[%clk 0:02:39]}  Ng4 {[%clk 0:02:50]} 10. Nd1 {[%clk 0:02:15]}  d5 {[%clk 0:02:45]} 11. exd5 {[%clk 0:02:13]}  Bc5 {[%clk 0:02:45]} 12. Qxc5 {[%clk 0:01:46]}  Nxc5 {[%clk 0:02:44]} 13. Bxc5 {[%clk 0:01:46]}  cxd5 {[%clk 0:02:38]} 14. Bxf8 {[%clk 0:01:42]}  dxc4 {[%clk 0:02:36]} 15. Bc5 {[%clk 0:01:31]}  b6 {[%clk 0:02:36]} 16. Bd4 {[%clk 0:01:29]}  Bb7 {[%clk 0:02:36]} 17. c3 {[%clk 0:01:29]}  Qd6 {[%clk 0:02:18]} 18. h3 {[%clk 0:01:25]}  Nf6 {[%clk 0:02:16]} 19. Ne5 {[%clk 0:01:24]}  Nd5 {[%clk 0:02:07]} 20. Nxc4 {[%clk 0:01:18]}  Qh6 {[%clk 0:02:05]} 21. Nde3 {[%clk 0:01:05]}  Nxf4 {[%clk 0:02:03]} 22. Rf2 {[%clk 0:00:37]}  Re8 {[%clk 0:01:40]} 23. Raf1 {[%clk 0:00:34]}  Bxg2 {[%clk 0:01:30]} 24. Rxf4 {[%clk 0:00:17]}  Bxf1 {[%clk 0:01:26]} 25. Rxf1 {[%clk 0:00:17]}  Qxh3 {[%clk 0:01:24]} 26. Nf5 {[%clk 0:00:11]}  Re2 {[%clk 0:01:18]} 0-1


[Site "https://www.chess.com"]